{"text_format":"1","workbook":"xlsx","n_sheets":6,"sheets":["BASF","Product list","References","TRANSFER-2 COPIES","TAN ENVELOPE","LG SPEC 60"],"not_rendered":{"charts":0,"images":7,"macros":1,"external_links":0,"defined_names":30,"comments":2,"pivot_tables":0},"unopened":[],"bounds":{"document_bytes":16777216,"sheet_cells":100000,"rows_first":2000,"rows_last":500,"rows_between":2000,"halvings":0,"cell_chars":16384,"cell_head_chars":4096},"cells_cut":0,"cells_raw":0,"read":"whole","date_system":"1900"}

{"sheet":"BASF","index":0,"n_rows":38,"n_cols":12,"rows_kept":38,"cut":false,"hidden":false,"merged":[[12,1,12,2],[7,1,7,2],[11,0,11,1],[37,0,42,8],[0,3,2,5],[23,1,23,2],[32,0,32,3],[36,0,36,2],[25,6,25,8],[1,1,1,2],[28,6,28,8],[26,6,26,8],[23,6,23,8],[21,6,21,8],[22,6,22,8],[21,1,21,3],[2,1,2,2],[4,1,4,2],[6,5,6,8],[5,1,5,3],[6,1,6,3],[20,5,20,8],[13,1,13,2],[20,0,20,3],[14,12,14,14],[30,6,35,8]]}
["DATE:","2019-12-31",null,"ROUNDUP.READY",null,null,null,null,null,null,"Misc info"]
["CONTACT:","KANDY DANIELS"]
["PHONE #",{"$f":"IF(B2=\"Kandy Daniels\",\"208-505-5303\",\"\")","v":"208-505-5303"},null,null,null,null,"GTIN:",{"$f":"IFERROR(OFFSET('Product list'!$A$1,MATCH(1,INDEX(($B$5='Product list'!$B$2:$B$59)*($B$7='Product list'!$E$2:$E$59),,),0),MATCH($G3,'Product list'!$A$1:$AE$1,0)-1,1,1),\"Not Exists\")","v":"00884464486057"}]
[null,null,null,null,null,null,"ITEM #:",{"$f":"IFERROR(OFFSET('Product list'!$A$1,MATCH(1,INDEX(($B$5='Product list'!$B$2:$B$59)*($B$7='Product list'!$E$2:$E$59),,),0),MATCH($G4,'Product list'!$A$1:$AE$1,0)-1,1,1),\"Not Exists\")","v":"3AG98--CO50"}]
["FOR:","AMERICASrr",null,false]
[]
["VARIETY:","ALFAGRAZE 600RR 34%",null,null,null,"TREAT/COAT "]
["NEW LOT #","HXXX-XXCGSF",null,null,null,"COATING%",{"$f":"IFERROR(INDEX('Product list'!A2:BZ2855,MATCH(BASF!B7,'Product list'!E2:E2855,0),MATCH(BASF!F8,'Product list'!A1:BZ1,0)),\"\")","v":""},"COLOR:",{"$f":"IFERROR(IF(D5=TRUE,\"\",INDEX('Product list'!A2:BZ2855,MATCH(BASF!B7,'Product list'!E2:E2855,0),MATCH(BASF!H8,'Product list'!A1:BZ1,0))),\"\")","v":"PURPLE"}]
["QTY BAGS",800,null,null,null,"LIME:",{"$f":"IFERROR(IF(D5=TRUE,\"\",(INDEX('Product list'!A2:BZ2855,MATCH(BASF!B7,'Product list'!E2:E2855,0),MATCH(BASF!F9,'Product list'!A1:BZ1,0)))),\"\")","v":"X"},"APRON XL:",{"$f":"IFERROR(IF(D5=TRUE,\"\",(INDEX('Product list'!A2:BZ2855,MATCH(BASF!B7,'Product list'!E2:E2855,0),MATCH(BASF!H9,'Product list'!A1:BZ1,0)))),\"\")","v":"YES"}]
["FINISHED LBS",{"$f":"IFERROR(IF(I28=\"LB\",B9*H28,IF(I28=\"KG\",(B9*H28)/2.2046,\"\")),\"\")","v":40000},null,null,null,"N-HANCE",{"$f":"IFERROR(IF(D5=TRUE,\"\",(INDEX('Product list'!A2:BZ2855,MATCH(BASF!B7,'Product list'!E2:E2855,0),MATCH(BASF!F10,'Product list'!A1:BZ1,0)))),\"\")","v":0},"NIT. GOLD  (BX)",{"$f":"IFERROR(IF(D5=FALSE,\nIF(ISNUMBER(SEARCH(\"34%\",B7)),(B10/1.5)/3316,\nIF(ISNUMBER(SEARCH(\"8%\",B7)),(B10/1.087)/3316)),\nIF(ISNUMBER(SEARCH(\"34%\",B7)),(B10/5000),\nIF(ISNUMBER(SEARCH(\"8%\",B7)),(B10/5000)))),\"\")","v":8.0418174507438689}]
[null,null,null,null,null,"GROZONE",{"$f":"IFERROR(IF(D5=TRUE,\"\",INDEX('Product list'!A2:BZ2855,MATCH(BASF!B7,'Product list'!E2:E2855,0),MATCH(BASF!F11,'Product list'!A1:BZ1,0))),\"\")","v":0},"OPTIMIZE (CS)",{"$f":"IFERROR(IF(D5=TRUE,\"\",SUM(IF(INDEX('Product list'!A2:BZ1855,MATCH(BASF!B7,'Product list'!E2:E2855,0),MATCH(BASF!H11,'Product list'!A1:BZ1,0))=\"X\",BASF!B15/3000))),\"\")","v":13.333333333333334}]
["Incoming info",null,null,"ITEM#",null,"MICRONUTRIENT:",{"$f":"IFERROR(IF(D5=TRUE,\"\",INDEX('Product list'!A2:BZ2854,MATCH(BASF!B7,'Product list'!E2:E2854,0),MATCH(BASF!F12,'Product list'!A1:BZ1,0))),\"\")","v":"X"},"STAMINA (GA)",{"$f":"IFERROR(IF(D5=TRUE,\"\",SUM(IF(INDEX('Product list'!A2:BZ2855,MATCH(BASF!B7,'Product list'!E2:E2855,0),MATCH(BASF!H12,'Product list'!A1:BZ1,0))=\"X\",BASF!B15/8533.33,SUM(IF(INDEX('Product list'!A2:BZ2855,MATCH(BASF!B7,'Product list'!E2:E2855,0),MATCH(BASF!H12,'Product list'!A1:BZ1,0))=\"H\",BASF!B15/4129))))),\"\")","v":0}]
["Variety:","ABC",null,1667628,null,null,null,"ASCEND (GA)",{"$f":"IFERROR(IF(D5=TRUE,\"\",SUM(IF(INDEX('Product list'!A2:BZ2855,MATCH(BASF!B7,'Product list'!E2:E2855,0),MATCH(BASF!H13,'Product list'!A1:BZ1,0))=\"X\",BASF!B15/3200))),\"\")","v":0}]
["Lot:",123,null,null,null,null,null,"THIRTY THIRTY (GA)",{"$f":"IFERROR(IF(D5=TRUE,\"\",SUM(IF(INDEX('Product list'!A2:BZ2855,MATCH(BASF!B7,'Product list'!E2:E2855,0),MATCH(BASF!H14,'Product list'!A1:BZ1,0))=\"X\",BASF!B15/3200))),\"\")","v":0}]
["Raw LBS",{"$f":"IFERROR(IF(D5=TRUE,\"\",(ROUNDUP(IF(G8=34%,(B10-SUM(D18:D20))/1.5,IF(G8=8%,(B10-SUM(D18:D20))/1.087,IF(G8=\"\",B9*H28,\"\"))),-1))),\"\")","v":40000},null,null,null,null,null,"TAKE OFF (FO)",{"$f":"IFERROR(IF(D5=TRUE,\"\",SUM(IF(INDEX('Product list'!A2:BZ2855,MATCH(BASF!B7,'Product list'!E2:E2855,0),MATCH(BASF!H15,'Product list'!A1:BZ1,0))=\"X\",BASF!B15/320000))),\"\")","v":0}]
[]
[null,"VARIETY","LOT#","QTY (LBS)","ITEM#"]
[{"$f":"IF(D5=FALSE,\"BLEND BACK\",\"RE-INOC\")","v":"BLEND BACK"}]
[]
[]
[null,null,null,null,null,"PACKAGING"]
["TAG:",{"$f":"IFERROR(INDEX('Product list'!A2:BZ2855,MATCH(BASF!B7,'Product list'!E2:E2855,0),MATCH(BASF!A22,'Product list'!A1:BZ1,0)),\"\")","v":"AMERICAS RR"},null,null,null," Top Tape or Stencil:",{"$f":"IFERROR(INDEX('Product list'!B2:BZ2855,MATCH(BASF!B7,'Product list'!E2:E2855,0),MATCH(BASF!F22,'Product list'!B1:BZ1,0)),\"\")","v":"STENCIL"}]
["BLUE TAG:",{"$f":"IFERROR(IF(B5=TRUE,\"\",INDEX('Product list'!A2:BZ2854,MATCH(BASF!B7,'Product list'!E2:E2854,0),MATCH(BASF!A23,'Product list'!A1:BZ1,0))),\"\")","v":0},null,null,null,null,{"$f":"IFERROR(INDEX('Product list'!A2:BZ2855,MATCH(BASF!B7,'Product list'!E2:E2855,0),MATCH(BASF!J23,'Product list'!A1:BZ1,0)),\"\")","v":"ALFAGRAZE 600RR"},null,null,"Stencil",null,"NOT SURE WHY SHE USED THIS FORMULA FOR G23"]
["OTHER TAG:",{"$f":"IFERROR(IF(B5=TRUE,\"\",INDEX('Product list'!A2:BZ2855,MATCH(BASF!B7,'Product list'!E2:E2855,0),MATCH(BASF!A24,'Product list'!A1:BZ1,0))),\"\")","v":0},null,null,null,null,{"$f":"B8","v":"HXXX-XXCGSF"},null,null,"Lot",null,{"$f":"IFERROR(INDEX('Product list'!A2:BZ2854,MATCH(BASF!B7,'Product list'!E2:E2854,0),MATCH(BASF!J24,'Product list'!A1:BZ1,0)),\"\")","v":"HXXX-XXCGSF"}]
["PURITY:",{"$f":"100-C26-C27-C28-B27","v":{"$error":"#VALUE!"}}]
["CROP:",null,".01",null,null,"TOP TAPE COLOR:"]
["INERT:",{"$f":"IF(G8=34%,\"34\",IF(G8=8%,\"8\",\"\"))","v":""},".08",null,null,"BAG TYPE:",{"$f":"IFERROR(INDEX('Product list'!B2:BZ2855,MATCH(BASF!B7,'Product list'!E2:E2855,0),MATCH(BASF!F27,'Product list'!B1:BZ1,0)),\"\")","v":"AMERICAS RR"}]
["WEED:",null,".01",null,null,"BAG WT:",null,{"$f":"IFERROR(INDEX('Product list'!B2:BZ2855,MATCH(BASF!B7,'Product list'!E2:E2855,0),MATCH(BASF!F28,'Product list'!B1:BZ1,0)),\"\")","v":50},{"$f":"IF(H28=50,\"LB\",IF(H28=25,\"KG\",IF(H28=20,\"KG\",IF(H28=2000,\"LB\",IF(H28=1000,\"KG\",\"\")))))","v":"LB"}]
["TTL GERM:",{"$f":"C30+C31","v":90},null,null,null,"Bags/Pallet",{"$f":"IFERROR(INDEX('Product list'!B2:BZ2855,MATCH(BASF!B7,'Product list'!E2:E2855,0),MATCH(BASF!F29,'Product list'!B1:BZ1,0)),\"\")","v":40}]
["GERM:",null,75,null,null,"# of pallets:",{"$f":"ROUNDUP(B9/G29,0)","v":20}]
["HARDSEED:",null,15,null,null,"Notes:","KERMAN 200\nTAG"]
["TEST DATE:","7/19","INOC EXP:","2021-07-28"]
["ORIGIN"]
[null,null,null,null,null,{"$f":"SUM(A34:E34)","v":0}]
[]
[]
["SPECIAL INSTRUCTIONS"]
[{"$f":"IFERROR(INDEX('Product list'!A2:BZ2855,MATCH(BASF!B7,'Product list'!E2:E2855,0),MATCH(BASF!A37,'Product list'!A1:BZ1,0)),\"\")","v":0}]

{"sheet":"Product list","index":1,"n_rows":59,"n_cols":31,"rows_kept":59,"cut":false,"hidden":false,"merged":[]}
["Trait","Brand/Customer","ITEM #:","GTIN:",null,"PT","Coating%","Color:","APRON XL:","N-Hance","Grozone","LIME:","MICRONUTRIENT:","ASCEND (GA)","THIRTY THIRTY (GA)","OPTIMIZE (CS)","STAMINA (GA)","Take Off (FO)","TAG:","BLUE TAG:","OTHER TAG:"," Top Tape or Stencil:","TOPE TAPE COLOR:","BAG TYPE:","Stencil","Lot","BAG WT:","UM","Bags/Pallet","SPECIAL INSTRUCTIONS","Notes:"]
["CONVENTIONAL","AMERICASconv","3AH00--CO50","00884464608220","ARCHER III 34%",null,0.34,"RED","YES",null,"X","X","X",null,null,"X","X",null,"AMERICAS CONV",null,null,"STENCIL","RED","AMERICAS","ARCHER III",{"$f":"BASF!$B$8","v":"HXXX-XXCGSF"},50,"LB",40]
["CONVENTIONAL","AMERICASconv",1612257,"00884464638418","ARCHER III (PT) 34%","X",0.34,"RED","YES",null,"X","X","X",null,null,"X","X",null,"AMERICAS GREEN TAG",null,null,"STENCIL","RED","AMERICAS","ARCHER III",{"$f":"BASF!$B$8","v":"HXXX-XXCGSF"},50,"LB",40]
["CONVENTIONAL","AMERICASconv","3AH05--CO50","00884464383769","ARRIBA II 34%",null,0.34,"RED","YES",null,"X","X","X",null,null,"X",null,null,"AMERICAS CONV",null,null,"STENCIL","RED","AMERICAS","ARRIBA II",{"$f":"BASF!$B$8","v":"HXXX-XXCGSF"},50,"LB",40]
[]
["CONVENTIONAL","CROPLANconv",1496409,"00884464568234","640 BRAND 34%",null,0.34,"RED","YES",null,"X","X",null,null,null,null,null,null,"CROPLAN CONV",null,null,"STENCIL","RED","CROPLAN BLEND","640 BRAND",{"$f":"BASF!$B$8","v":"HXXX-XXCGSF"},50,"LB",40,"Red top tape"]
["CONVENTIONAL","CROPLANconv","1494809","00884464568135","GUNNER 34%",null,0.34,"RED","YES",null,"X","X",null,"X","X",null,"X",null,"CROPLAN CONV",null,null,"STENCIL","RED","CROPLAN ELITE","GUNNER",{"$f":"BASF!$B$8","v":"HXXX-XXCGSF"},50,"LB",40]
["CONVENTIONAL","CROPLANconv","1612263","00884464638449","GUNNER (PT) 34%","X",0.34,"RED","YES",null,"X","X",null,"X","X",null,"X",null,"CROPLAN GREEN TAG",null,null,"STENCIL","RED","CROPLAN ELITE","GUNNER",{"$f":"BASF!$B$8","v":"HXXX-XXCGSF"},50,"LB",40]
[]
["CONVENTIONAL","NEXGROWconv",1656302,"00884464665544","6305Q 34%",null,0.34,"RED","YES",null,null,"X","X",null,null,"X","X",null,"NEXGROW CONV",null,null,"STENCIL","WHITE","NEXGROW","LOT # ONLY",{"$f":"BASF!$B$8","v":"HXXX-XXCGSF"},50,"LB",40,"USE NG CONV COATED TAGS"]
["CONVENTIONAL","NEXGROWconv",1656303,"00884464665551","6401N 34%",null,0.34,"RED","YES",null,null,"X","X",null,null,"X","X",null,"NEXGROW CONV",null,null,"STENCIL","WHITE","NEXGROW","LOT # ONLY",{"$f":"BASF!$B$8","v":"HXXX-XXCGSF"},50,"LB",40,"USE NG CONV COATED TAGS"]
["CONVENTIONAL","NEXGROWconv",1656304,"00884464665568","6422Q 34%",null,0.34,"RED","YES",null,null,"X","X",null,null,"X","X",null,"NEXGROW CONV",null,null,"STENCIL","WHITE","NEXGROW","LOT # ONLY",{"$f":"BASF!$B$8","v":"HXXX-XXCGSF"},50,"LB",40,"USE NG CONV COATED TAGS"]
[]
["CONVENTIONAL","WLconv","1612300","00884464638821","WL319HQ 34%",null,0.34,"RED","YES",null,null,"X","X",null,null,"X","X",null,"WL CONV",null,null,"TOP TAPE","WHITE","WL","WL319HQ",{"$f":"BASF!$B$8","v":"HXXX-XXCGSF"},50,"LB",40]
["CONVENTIONAL","WLconv",1656051,"00884464665261","WL354HQ 34%",null,0.34,"RED","YES",null,null,"X","X",null,null,"X","X",null,"WL CONV",null,null,"TOP TAPE","WHITE","WL","WL354HQ",{"$f":"BASF!$B$8","v":"HXXX-XXCGSF"},50,"LB",40]
["CONVENTIONAL","WLconv",1612303,"00884464638845","WL358LH GROWMARK 34%",null,0.34,"RED","YES",null,null,"X","X",null,null,"X","X",null,"WL GROWMARK CONV",null,null,"TOP TAPE","WHITE","WL","WL358LH",{"$f":"BASF!$B$8","v":"HXXX-XXCGSF"},50,"LB",40]
[]
["ROUNDUP.READY","AMERICASrr","3AG98--CO50","00884464486057","ALFAGRAZE 600RR 34%",null,0.34,"PURPLE","YES",null,null,"X","X",null,null,"X",null,null,"AMERICAS RR",null,null,"STENCIL","WHITE","AMERICAS RR","ALFAGRAZE 600RR",{"$f":"BASF!$B$8","v":"HXXX-XXCGSF"},50,"LB",40]
["ROUNDUP.READY","AMERICASrr","1680682","00884464714563","AMERISTAND 415NTRR 34%",null,0.34,"PURPLE","YES",null,null,"X","X",null,null,"X","X",null,"AMERICAS RR",null,null,"STENCIL","WHITE","AMERICAS RR","AMERISTAND 415NTRR",{"$f":"BASF!$B$8","v":"HXXX-XXCGSF"},50,"LB",40]
["ROUNDUP.READY","AMERICASrr","1680683","00884464714570","AMERISTAND 415NTRR 8%",null,0.08,"PURPLE","YES",null,null,"X","X",null,null,"X","X",null,"AMERICAS RR",null,null,"STENCIL","WHITE","AMERICAS RR","AMERISTAND 415NTRR",{"$f":"BASF!$B$8","v":"HXXX-XXCGSF"},50,"LB",40]
[]
["ROUNDUP.READY","CROPLAN RR","3AF61--C850","00884464264549","DESERT SUN 8.10RR 8%",null,0.08,"PURPLE","YES",null,"X","X",null,null,"X",null,null,null,"CROPLAN RR",null,null,"STENCIL","WHITE","CROPLAN RR","DESERT SUN 8.10RR",{"$f":"BASF!$B$8","v":"HXXX-XXCGSF"},50,"LB",40]
["ROUNDUP.READY","CROPLAN RR","3AH09--CV50","00884464451031","GRAZE-N-HAY 3.10RR 34%",null,0.34,"PURPLE","YES",null,"X","X",null,"X","X",null,null,null,"CROPLAN RR",null,null,"STENCIL","WHITE","CROPLAN RR","GRAZE-N-HAY 3.10RR",{"$f":"BASF!$B$8","v":"HXXX-XXCGSF"},50,"LB",40]
["ROUNDUP.READY","CROPLAN RR",1674453,"00884464693967","RR 6 SHOT PLUS 34%",null,0.34,"PURPLE","YES",null,"X","X",null,null,"X",null,"X",null,"CROPLAN RR",null,null,"STENCIL","WHITE","CROPLAN RR","RR 6 SHOT PLUS",{"$f":"BASF!$B$8","v":"HXXX-XXCGSF"},50,"LB",40]
[]
["ROUNDUP.READY","NEXGROWrr",1656301,"00884464665537","6015R 34%",null,0.34,"PURPLE","YES",null,null,"X","X",null,null,"X","X",null,"NEXGROW RR",null,null,"TOP TAPE LOT# ONLY","WHITE","NEXGROW RR","6015R",{"$f":"BASF!$B$8","v":"HXXX-XXCGSF"},50,"LB",40]
["ROUNDUP.READY","NEXGROWrr",1656293,"00884464665452","6015R 8%",null,0.08,"PURPLE","YES",null,null,"X","X",null,null,"X","X",null,"NEXGROW RR",null,null,"TOP TAPE LOT# ONLY","WHITE","NEXGROW RR","6015R",{"$f":"BASF!$B$8","v":"HXXX-XXCGSF"},50,"LB",40]
["ROUNDUP.READY","NEXGROWrr",1677235,"00884464704045","6373R 34%",null,0.34,"PURPLE","YES",null,null,"X","X",null,null,"X","X",null,"NEXGROW RR",null,null,"TOP TAPE LOT# ONLY","WHITE","NEXGROW RR","6373R",{"$f":"BASF!$B$8","v":"HXXX-XXCGSF"},50,"LB",40]
[]
["ROUNDUP.READY","WLrr",1612302,"00884464638838","WL356HQRR 34%",null,0.34,"PURPLE","YES","X",null,"X","X",null,null,"X","X",null,"WL RR",null,null,"TOP TAPE","WHITE","WL RR","WL356HQRR",{"$f":"BASF!$B$8","v":"HXXX-XXCGSF"},50,"LB",40]
["ROUNDUP.READY","WLrr",1612305,"00884464638869","WL359LHRR 34%",null,0.34,"PURPLE","YES",null,null,"X","X",null,null,"X","X",null,"WL RR",null,null,"TOP TAPE","WHITE","WL RR","WL359LHRR",{"$f":"BASF!$B$8","v":"HXXX-XXCGSF"},50,"LB",40]
["ROUNDUP.READY","WLrr",1657711,"00884464670371","WL359LHRR 8%",null,0.08,"PURPLE","YES",null,null,"X","X",null,null,"X","X",null,"WL RR",null,null,"TOP TAPE","WHITE","WL RR","WL359LHRR",{"$f":"BASF!$B$8","v":"HXXX-XXCGSF"},50,"LB",40]
[]
["HARVXTRA","AMERICAShvx",1652356,"00884464659482","AMERISTAND 480HVXRR 34%",null,0.34,"PURPLE","YES",null,null,"X","X",null,null,"X","H","X","AMERICA'S HVXX",null,null,"STENCIL","WHITE","AMERICAS HARVXTRA","AMERISTAND 480HVXRR",{"$f":"BASF!$B$8","v":"HXXX-XXCGSF"},50,"LB",40]
["HARVXTRA","AMERICAShvx",1656581,"00884464666213","HVX840RR BRAND 34%",null,0.34,"PURPLE","YES",null,null,"X","X",null,null,"X","H","X","AMERICA'S HVXX",null,null,"STENCIL","WHITE","AMERICAS HARVXTRA","HVX840RR BRAND",{"$f":"BASF!$B$8","v":"HXXX-XXCGSF"},50,"LB",40]
[]
["HARVXTRA","CROPLANhvx",1676919,"00884464702492","HVX DRIVER 25KG 34%",null,0.34,"PURPLE","YES",null,"X","X",null,"X","X",null,"H",null,"CROPLAN CANADA HVX ","YES",null,"STENCIL","WHITE","25KG CROPLAN HARVXTRA","HVX DRIVER",{"$f":"BASF!$B$8","v":"HXXX-XXCGSF"},25,"KG",35,"PUT INOC LOT# ON TAGS\nATTACH BLUE TAG IN FRONT OF ANALYSIS TAG"]
["HARVXTRA","CROPLANhvx",1682682,"00884464716383","HVX TUNDRA 34%",null,0.34,"PURPLE","YES",null,"X","X",null,"X","X",null,"H","X","CROPLAN HVX",null,null,"STENCIL","WHITE","CROPLAN HARVXTRA","HVX TUNDRA",{"$f":"BASF!$B$8","v":"HXXX-XXCGSF"},50,"LB",40]
["HARVXTRA","CROPLANhvx",1656583,"00884464666237","HVX840RR BRAND 34%",null,0.34,"PURPLE","YES",null,"X","X",null,null,null,"X","H","X","CROPLAN HVX",null,null,"STENCIL","WHITE","GENERIC HARVXTRA","HVX840RR BRAND",{"$f":"BASF!$B$8","v":"HXXX-XXCGSF"},50,"LB",40]
["HARVXTRA","CROPLANhvx",1682427,"00884464716222","HVX840RR BRAND 34%",null,0.34,"PURPLE","YES",null,"X","X",null,null,"X",null,"H","X","CROPLAN HVX",null,null,"STENCIL","WHITE","CROPLAN HARVXTRA","HVX840RR BRAND",{"$f":"BASF!$B$8","v":"HXXX-XXCGSF"},50,"LB",40,"NO ASCEND"]
[]
["HARVXTRA","NEXGROWhvx",1656579,"00884464666190","6409HVRX 8%",null,0.08,"PURPLE","YES",null,null,"X","X",null,null,"X","H","X","NEXGROW HVX",null,null,"STENCIL","WHITE","NEXGROW HARVXTRA","LOT # ONLY",{"$f":"BASF!$B$8","v":"HXXX-XXCGSF"},50,"LB",40]
["HARVXTRA","NEXGROWhvx",1653467,"00884464663946","6409HVRX 34%",null,0.34,"PURPLE","YES",null,null,"X","X",null,null,"X","H","X","NEXGROW HVX",null,null,"STENCIL","WHITE","NEXGROW HARVXTRA","LOT # ONLY",{"$f":"BASF!$B$8","v":"HXXX-XXCGSF"},50,"LB",40]
["HARVXTRA","NEXGROWhvx",1656582,"00884464666220","HVX840RR BRAND 34%",null,0.34,"PURPLE","YES",null,null,"X","X",null,null,"X","H","X","NEXGROW HVX",null,null,"STENCIL","WHITE","NEXGROW HARVXTRA","LOT # ONLY",{"$f":"BASF!$B$8","v":"HXXX-XXCGSF"},50,"LB",40]
[]
["HARVXTRA","WLhvx",1656580,"00884464666206","HVX840RR BRAND 34%",null,0.34,"PURPLE","YES",null,null,"X","X",null,null,"X","H","X","WL HVX",null,null,"STENCIL","WHITE","WL HARVXTRA","HVX840RR BRAND",{"$f":"BASF!$B$8","v":"HXXX-XXCGSF"},50,"LB",40]
["HARVXTRA","WLhvx",1677419,"00884464704465","WL375HVXRR 25KG 34%","X",0.34,"PURPLE","YES","X",null,"X","X",null,null,null,"H",null,"WL CANADA HVX","YES",null,"TOP TAPE","WHITE","25KG WL HARVXTRA","WL375HVXRR",{"$f":"BASF!$B$8","v":"HXXX-XXCGSF"},25,"KG",35,"USE CANADIAN HARVXTRA CARD STOCK\nPUT INOC LOT# ON TAGS\nATTACH BLUE TAG IN FRONT OF ANALYSIS TAG"]
["HARVXTRA","WLhvx",1665749,"00884464690065","WL375HVXRR 34%",null,0.34,"PURPLE","YES",null,null,"X","X",null,null,"X","H","X","WL HVX",null,null,"TOP TAPE","WHITE","WL HARVXTRA","WL375HVXRR",{"$f":"BASF!$B$8","v":"HXXX-XXCGSF"},50,"LB",40]
[]
["CONVENTIONAL","PRIVATE.LABELconv",1504073,"00884464608367","CAMAS 34%",null,0.34,"RED","YES","X",null,"X",null,null,null,null,"X",null,"LG SEED",null,null,"STENCIL",null,"LG SEED","CAMAS",{"$f":"BASF!$B$8","v":"HXXX-XXCGSF"},50,"LB","40 (FGI Pallet)"]
["CONVENTIONAL","PRIVATE.LABELconv",1634841,"00884464646109","COMPASS 25KG 34%",null,0.34,"RED","YES","X",null,"X","X",null,null,null,null,null,"PERFORMANCE","YES",null,"STENCIL",null,"PERFORMANCE","COMPASS",{"$f":"BASF!$B$8","v":"HXXX-XXCGSF"},25,"KG",35]
[]
["ROUNDUP.READY","PRIVATE.LABELrr",1677556,"00884464704915","396RR BRAND 34%",null,0.34,"PURPLE","YES","X",null,"X",null,null,null,null,null,null,"HOEGEMEYER/PIONEER",null,null,"STENCIL","ROUNDUP READY W/RED SEW STRING","HOEGEMEYER","396RR BRAND",{"$f":"BASF!$B$8","v":"HXXX-XXCGSF"},50,"LB",30,"USE PIONEER PALLETS (TASLER STAMP)\nSTACK 6 BAGS PER LAYER\nSTENCIL LIKE PICTURE (SEE IMAGE)\nPUT PALLET LABEL ON FRONT AND BACK OF PALLET"]
["ROUNDUP.READY","PRIVATE.LABELrr","1553406","00884464608053","9200RR 34%",null,0.34,"PURPLE","YES","X",null,"X",null,null,null,null,"X",null,"LG SEED",null,null,"STENCIL",null,"LG SEED","9200RR",{"$f":"BASF!$B$8","v":"HXXX-XXCGSF"},50,"LB","60 (AGR Pallet)","SEW TAG ON LEFT CORNER OF BAG\n(FGI-SEND PICTURE OF STENCIL AND TAG TO LAYNE WARDENBURG)\nNeed 3 lb bagging sample w/tag for customer"]
[]
["HARVXTRA","PRIVATE.LABELhvx","1656584","00884464666244","HVX840RR BRAND 34% (east)",null,0.34,"PURPLE","YES",null,null,"X","X",null,null,"X","X","X","LG SEED",null,null,"STENCIL",null,"LG SEED","HVX840RR BRAND",{"$f":"BASF!$B$8","v":"HXXX-XXCGSF"},50,"LB","60 (AGR Pallet)","SEW TAG ON LEFT CORNER OF BAG\n(FGI-SEND PICTURE OF STENCIL AND TAG TO LAYNE WARDENBURG)\nNeed 3 lb bagging sample w/tag for customer"]
["HARVXTRA","PRIVATE.LABELhvx","1656584","00884464666244","HVX840RR BRAND 34% (west)",null,0.34,"PURPLE","YES",null,null,"X","X",null,null,"X","X","X","LG SEED",null,null,"STENCIL",null,"LG SEED","HVX840RR BRAND",{"$f":"BASF!$B$8","v":"HXXX-XXCGSF"},50,"LB","40 (FGI Pallet)","SEW TAG ON LEFT CORNER OF BAG\n(FGI-SEND PICTURE OF STENCIL AND TAG TO LAYNE WARDENBURG)\nNeed 3 lb bagging sample w/tag for customer"]
["HARVXTRA","PRIVATE.LABELhvx",1677378,"00884464704380","LEGEND HVX 100 RR 34%",null,0.34,"PURPLE","YES","X",null,"X","X",null,null,null,"X","X","LEGEND SEED",null,null,"STENCIL",null,"LEGEND RR","LEGEND HVX 100 RR",{"$f":"BASF!$B$8","v":"HXXX-XXCGSF"},50,"LB",50]
["HARVXTRA","PRIVATE.LABELhvx","1656722","00884464666343","MISSION HVXRR 25KG 34%",null,0.34,"PURPLE","YES","X",null,"X","X",null,null,null,null,null,"PICKSEED","YES","FRENCH","STENCIL",null,"PICKSEED 25 KG HARVXTRA","MISSION HVXRR",{"$f":"BASF!$B$8","v":"HXXX-XXCGSF"},25,"KG",35,"USE PL CANADIAN HARVXTRA CARD STOCK\nPUT INOC LOT# ON TAGS\nATTACH BLUE TAG IN FRONT OF ANALYSIS TAG"]

{"sheet":"References","index":2,"n_rows":13,"n_cols":7,"rows_kept":13,"cut":false,"hidden":false,"merged":[]}
["CONVENTIONAL","ROUNDUP.READY","HARVXTRA"]
["AMERICASconv","AMERICASrr","AMERICAShvx"]
["CROPLANconv","CROPLANrr","CROPLANhvx"]
["NEXGROWconv","NEXGROWrr","NEXGROWhvx"]
["Wlconv","WLrr","WLhvx"]
["PRIVATE.LABELconv","PRIVATE.LABELrr","PRIVATE.LABELhvx"]
[]
[]
[]
[]
["Brand","Bag"]
["CROPLAN ELITE",null,null,null,null,"CROPLAN ELITE",{"$f":"BAG","v":{"$error":"#NAME?"}}]
["LG"]

{"sheet":"TRANSFER-2 COPIES","index":3,"n_rows":45,"n_cols":9,"rows_kept":45,"cut":false,"hidden":false,"merged":[[43,2,43,3],[43,7,43,8],[44,2,44,3],[44,4,44,5],[6,6,6,8],[7,7,7,8],[40,4,40,5],[40,7,40,8],[42,2,42,3],[42,7,42,8],[2,1,7,1],[2,3,2,4],[2,6,2,8],[3,3,3,4],[3,6,3,8],[4,3,4,4],[4,6,4,8],[5,3,5,4],[5,6,5,8],[6,3,6,4]]}
[]
[null,null,"FROM:",null,null,"TO:"]
[null,null,null,"FGI-11TH - 1423 11TH Ave, Nampa, ID",null,null,"FGI-11TH - 1423 11TH Ave, Nampa, ID"]
[null,null,null,"FGI-IC CENTER - 11TH Ave, Nampa, ID",null,null,"FGI-IC CENTER - 11TH Ave, Nampa, ID"]
[null,null,null,"FGI-FARGO - 1917 E. Fargo Ave, Nampa, ID",null,null,"FGI-FARGO - 1917 E. Fargo Ave, Nampa, ID"]
[null,null,null,"BASF - 818 Paynter Ave, Caldwell, ID",null,null,"BASF - 818 Paynter Ave, Caldwell, ID"]
[null,null,null,"SUMMIT - 716 N. 11th Ave, Caldwell, ID",null,null,"SUMMIT - 716 N. 11th Ave, Caldwell, ID"]
[null,null,null,"OTHER - ",null,null,"OTHER - "]
[]
[null,null,"ITEM#","DESCRIPTION","LOT #","LOC","BOX #","BOX # CONT'D.","WEIGHT"]
[null,1,{"$f":"BASF!D13","v":1667628},{"$f":"BASF!B13","v":"ABC"},{"$f":"BASF!B14","v":123},null,null,null,{"$f":"BASF!B15","v":40000}]
[null,2]
[null,3]
[null,4,null,"PULL SAMPLE FOR P&G"]
[null,5,null,"LABEL AS:",{"$f":"BASF!G23","v":"ALFAGRAZE 600RR"}]
[null,6,null,"LOT#:",{"$f":"BASF!G24","v":"HXXX-XXCGSF"}]
[null,7]
[null,8]
[null,9]
[null,10]
[null,11]
[null,12]
[null,13]
[null,14]
[null,15]
[null,16]
[null,17]
[null,18]
[null,19]
[null,20]
[null,21]
[null,22]
[null,23]
[null,24]
[null,25]
[null,26]
[null,27]
[null,28]
[null,29]
[null,30]
[null,null,null,"FINISHED VARIETY: ",{"$f":"E15","v":"ALFAGRAZE 600RR"},null,"FINISHED LOT: ",{"$f":"E16","v":"HXXX-XXCGSF"}]
[]
[null,null,"REASON FOR TRANSFER:",null,"COATING",null,"RECEIVED BY:"]
[null,null,"REQUESTED BY:",null,{"$f":"BASF!B2","v":"KANDY DANIELS"},null,"DATE:"]
[null,null,"Date:",null,{"$f":"BASF!B1","v":"2019-12-31"},null,null,"TTL WT:",{"$f":"SUM(I11:I40)","v":40000}]

{"sheet":"TAN ENVELOPE","index":4,"n_rows":19,"n_cols":6,"rows_kept":19,"cut":false,"hidden":false,"merged":[[16,0,16,3],[17,0,17,2]]}
[]
[]
[]
[]
[]
[]
[]
[null,null,null,null,"sample date",{"$f":"BASF!B1","v":"2019-12-31"}]
[]
[null,null,null,null,"(Tag test date)",{"$f":"BASF!B32","v":"7/19"}]
[]
[]
[]
[]
[]
[]
[{"$f":"BASF!G23","v":"ALFAGRAZE 600RR"},null,null,null,"P & G"]
[{"$f":"BASF!G24","v":"HXXX-XXCGSF"}]
[{"$f":"BASF!B9","v":800},{"$f":"BASF!H28","v":50},{"$f":"BASF!I28","v":"LB"}]

{"sheet":"LG SPEC 60","index":5,"n_rows":34,"n_cols":2,"rows_kept":34,"cut":false,"hidden":false,"merged":[[2,0,3,10],[8,0,9,10],[18,1,20,9]]}
[]
[null,"Bag Top – Front"]
["The print on the Bag Top BACK  will consist of: Brand Product Name, and Lot Number.  \nFont size/style is as follows;"]
[]
[null,"Arial Narrow 80 - Brand, Lot#"]
[]
[]
[]
["All Alfalfa seed that is bagged will have a analysis tag (on top), a treatment tag(2nd) and a Inoculant tag if available (on bottom) sewn to the front of the bag"]
[]
[]
["Sew Tag on with tape (staple on for retags) to the front, upper left hand corner on bags."]
[]
["Bags/Pallet "]
["a)    Flap label readable"]
["b)    Tags up, Tags out"]
["c)    60 bags/pallet"]
["d)    6 bags/layer – 4/2 pattern"]
[null,"            e)    See that bags do not overhang on the edges of the pallet.  If using a pallet stall, be sure to wipe shoes to assure nice clean bags."]
[]
[]
[]
["Slip Sheets"]
["One per pallet under paper bags."]
[]
[null,"Pallets"]
["a) Pallets will be AgReliant (AGR) branded.  "]
[]
["b) Be sure pallets are in good condition.  "]
["(i)    There should be no broken boards or nails sticking up that may puncture bags."]
[]
[]
[null,"Stretch Wrap, Top Cover"]
[null,"Stretch wrap the pallet completely from the top to the bottom"]